[Event "Titled Tuesday Blitz October 25 Late 2022"]
[White "Goltsev, Dmitry"]
[Black "Barash, Anton"]
[WhiteFideId "24176710"]
[BlackFideId "30935229"]
[WhiteElo "2257"]
[BlackElo "2285"]
[Result "1-0"]
[Round "02"]
[TimeControl "180+1"]
[Date "2022.10.26"]
[WhiteClock "0:01:14"]
[BlackClock "0:00:03"]

1. e4 {[%clk 0:03:00]}  e6 {[%clk 0:02:59]} 2. d4 {[%clk 0:03:00]}  d5 {[%clk 0:02:59]} 3. exd5 {[%clk 0:03:01]}  exd5 {[%clk 0:03:00]} 4. Nf3 {[%clk 0:03:02]}  Nf6 {[%clk 0:03:00]} 5. c4 {[%clk 0:03:03]}  Be7 {[%clk 0:02:56]} 6. Bd3 {[%clk 0:03:03]}  O-O {[%clk 0:02:55]} 7. O-O {[%clk 0:03:03]}  Bg4 {[%clk 0:02:54]} 8. Nc3 {[%clk 0:03:01]}  dxc4 {[%clk 0:02:53]} 9. Bxc4 {[%clk 0:03:02]}  Nbd7 {[%clk 0:02:53]} 10. Bg5 {[%clk 0:03:01]}  Nb6 {[%clk 0:02:52]} 11. Bb3 {[%clk 0:03:01]}  c6 {[%clk 0:02:49]} 12. Qd3 {[%clk 0:02:59]}  Nfd5 {[%clk 0:02:18]} 13. Bd2 {[%clk 0:02:44]}  Bf6 {[%clk 0:02:09]} 14. a3 {[%clk 0:02:41]}  Re8 {[%clk 0:02:03]} 15. Rfe1 {[%clk 0:02:40]}  Qc7 {[%clk 0:01:57]} 16. Rac1 {[%clk 0:02:37]}  Nf4 {[%clk 0:01:45]} 17. Bxf4 {[%clk 0:02:23]}  Qxf4 {[%clk 0:01:45]} 18. Ne2 {[%clk 0:02:06]}  Qe4 {[%clk 0:01:29]} 19. Qxe4 {[%clk 0:01:59]}  Rxe4 {[%clk 0:01:28]} 20. Bc2 {[%clk 0:01:58]}  Bxf3 {[%clk 0:01:17]} 21. gxf3 {[%clk 0:01:57]}  Re7 {[%clk 0:01:14]} 22. Ng3 {[%clk 0:01:56]}  Rxe1+ {[%clk 0:00:56]} 23. Rxe1 {[%clk 0:01:57]}  Bxd4 {[%clk 0:00:57]} 24. Re7 {[%clk 0:01:56]}  Rb8 {[%clk 0:00:52]} 25. b3 {[%clk 0:01:48]}  Nd5 {[%clk 0:00:50]} 26. Rd7 {[%clk 0:01:48]}  Bb6 {[%clk 0:00:41]} 27. Nf5 {[%clk 0:01:45]}  Nf6 {[%clk 0:00:28]} 28. Re7 {[%clk 0:01:45]}  Kf8 {[%clk 0:00:28]} 29. Re2 {[%clk 0:01:42]}  Rd8 {[%clk 0:00:26]} 30. b4 {[%clk 0:01:35]}  g6 {[%clk 0:00:22]} 31. Ng3 {[%clk 0:01:32]}  Nd5 {[%clk 0:00:22]} 32. Rd2 {[%clk 0:01:27]}  Ke7 {[%clk 0:00:21]} 33. Ne2 {[%clk 0:01:26]}  Nf6 {[%clk 0:00:15]} 34. Bd3 {[%clk 0:01:26]}  c5 {[%clk 0:00:13]} 35. bxc5 {[%clk 0:01:24]}  Bxc5 {[%clk 0:00:14]} 36. a4 {[%clk 0:01:24]}  Rd6 {[%clk 0:00:11]} 37. Nf4 {[%clk 0:01:22]}  Bb4 {[%clk 0:00:10]} 38. Re2+ {[%clk 0:01:21]}  Kf8 {[%clk 0:00:10]} 39. Bb5 {[%clk 0:01:20]}  a6 {[%clk 0:00:09]} 40. Bc4 {[%clk 0:01:20]}  Nd7 {[%clk 0:00:07]} 41. Bb3 {[%clk 0:01:18]}  Nc5 {[%clk 0:00:07]} 42. Bc2 {[%clk 0:01:18]}  Rd2 {[%clk 0:00:07]} 43. Rxd2 {[%clk 0:01:15]}  Bxd2 {[%clk 0:00:08]} 44. Nd5 {[%clk 0:01:16]}  b5 {[%clk 0:00:06]} 45. axb5 {[%clk 0:01:14]}  axb5 {[%clk 0:00:07]} 46. Kf1 {[%clk 0:01:15]}  b4 {[%clk 0:00:06]} 47. Ke2 {[%clk 0:01:15]}  b3 {[%clk 0:00:03]} 48. Kxd2 {[%clk 0:01:13]}  bxc2 {[%clk 0:00:03]} 49. Kxc2 {[%clk 0:01:14]}  Kg7 {[%clk 0:00:03]} 50. Kc3 {[%clk 0:01:15]}  Ne6 {[%clk 0:00:03]} 51. Kd3 {[%clk 0:01:15]}  Kh6 {[%clk 0:00:03]} 52. Ke4 {[%clk 0:01:15]}  Ng5+ {[%clk 0:00:03]} 53. Kf4 {[%clk 0:01:15]}  f5 {[%clk 0:00:03]} 54. Nc7 {[%clk 0:01:14]}  Ne6+ {[%clk 0:00:03]} 55. Nxe6 {[%clk 0:01:14]} 1-0


[Site "https://www.chess.com"]

[Event "Titled Tuesday Blitz October 25 Late 2022"]
[White "Goroshkov, Maksym"]
[Black "Sarana, Alexey"]
[WhiteFideId "14142716"]
[BlackFideId "24133795"]
[WhiteElo "2257"]
[BlackElo "2689"]
[Result "0-1"]
[Round "02"]
[TimeControl "180+1"]
[Date "2022.10.26"]
[WhiteClock "0:00:05"]
[BlackClock "0:00:55"]

1. e4 {[%clk 0:02:57]}  c5 {[%clk 0:02:59]} 2. c3 {[%clk 0:02:55]}  d5 {[%clk 0:02:59]} 3. exd5 {[%clk 0:02:55]}  Qxd5 {[%clk 0:02:59]} 4. d4 {[%clk 0:02:56]}  Nc6 {[%clk 0:03:00]} 5. Nf3 {[%clk 0:02:55]}  Bf5 {[%clk 0:03:00]} 6. Be2 {[%clk 0:02:55]}  e6 {[%clk 0:02:57]} 7. O-O {[%clk 0:02:54]}  Nf6 {[%clk 0:02:57]} 8. c4 {[%clk 0:02:51]}  Qd7 {[%clk 0:02:55]} 9. Be3 {[%clk 0:02:50]}  cxd4 {[%clk 0:02:50]} 10. Nxd4 {[%clk 0:02:49]}  Nxd4 {[%clk 0:02:49]} 11. Qxd4 {[%clk 0:02:48]}  Qxd4 {[%clk 0:02:22]} 12. Bxd4 {[%clk 0:02:49]}  a6 {[%clk 0:02:07]} 13. Bf3 {[%clk 0:02:48]}  O-O-O {[%clk 0:02:07]} 14. Bb6 {[%clk 0:02:39]}  Rd7 {[%clk 0:02:03]} 15. Nc3 {[%clk 0:02:37]}  Bb4 {[%clk 0:02:01]} 16. Rad1 {[%clk 0:02:28]}  Bxc3 {[%clk 0:01:59]} 17. bxc3 {[%clk 0:02:25]}  Be4 {[%clk 0:02:00]} 18. Bxe4 {[%clk 0:01:59]}  Nxe4 {[%clk 0:02:01]} 19. Rxd7 {[%clk 0:01:58]}  Kxd7 {[%clk 0:02:00]} 20. Rd1+ {[%clk 0:01:58]}  Kc6 {[%clk 0:02:00]} 21. Bd4 {[%clk 0:01:57]}  Rd8 {[%clk 0:01:53]} 22. Re1 {[%clk 0:01:57]}  Nf6 {[%clk 0:01:51]} 23. a4 {[%clk 0:01:52]}  Ne8 {[%clk 0:01:44]} 24. Rb1 {[%clk 0:01:45]}  Nd6 {[%clk 0:01:33]} 25. Rb6+ {[%clk 0:01:28]}  Kc7 {[%clk 0:01:33]} 26. c5 {[%clk 0:01:28]}  Nc4 {[%clk 0:01:27]} 27. Rb4 {[%clk 0:01:28]}  Na5 {[%clk 0:01:26]} 28. Rb1 {[%clk 0:00:30]}  Rg8 {[%clk 0:01:15]} 29. Be5+ {[%clk 0:00:25]}  Kc6 {[%clk 0:01:13]} 30. Rb6+ {[%clk 0:00:13]}  Kxc5 {[%clk 0:01:12]} 31. Bd4+ {[%clk 0:00:14]}  Kc4 {[%clk 0:01:11]} 32. Rb4+ {[%clk 0:00:14]}  Kd3 {[%clk 0:01:12]} 33. Rb6 {[%clk 0:00:12]}  Ke4 {[%clk 0:01:03]} 34. f3+ {[%clk 0:00:12]}  Kd5 {[%clk 0:01:02]} 35. Kf2 {[%clk 0:00:10]}  e5 {[%clk 0:00:58]} 36. Be3 {[%clk 0:00:10]}  f6 {[%clk 0:00:58]} 37. Rb4 {[%clk 0:00:10]}  Rc8 {[%clk 0:00:57]} 38. Rh4 {[%clk 0:00:08]}  h6 {[%clk 0:00:57]} 39. Rg4 {[%clk 0:00:08]}  g5 {[%clk 0:00:57]} 40. Rb4 {[%clk 0:00:07]}  Rxc3 {[%clk 0:00:57]} 41. Rb6 {[%clk 0:00:08]}  Rc6 {[%clk 0:00:57]} 42. Rb2 {[%clk 0:00:08]}  Rc4 {[%clk 0:00:51]} 43. Rb6 {[%clk 0:00:07]}  Rc2+ {[%clk 0:00:52]} 44. Kg3 {[%clk 0:00:07]}  Rc6 {[%clk 0:00:52]} 45. Rb2 {[%clk 0:00:06]}  Nc4 {[%clk 0:00:52]} 46. Rb3 {[%clk 0:00:06]}  Nxe3 {[%clk 0:00:52]} 47. Rxe3 {[%clk 0:00:07]}  b5 {[%clk 0:00:53]} 48. axb5 {[%clk 0:00:07]}  axb5 {[%clk 0:00:54]} 49. Rd3+ {[%clk 0:00:07]}  Kc4 {[%clk 0:00:54]} 50. Rd7 {[%clk 0:00:08]}  b4 {[%clk 0:00:54]} 51. Rb7 {[%clk 0:00:07]}  b3 {[%clk 0:00:55]} 52. Kg4 {[%clk 0:00:08]}  Kc3 {[%clk 0:00:55]} 53. Kf5 {[%clk 0:00:09]}  Kc2 {[%clk 0:00:55]} 54. g4 {[%clk 0:00:05]}  b2 {[%clk 0:00:55]} 0-1


[Site "https://www.chess.com"]

[Event "Titled Tuesday Blitz October 25 Late 2022"]
[White "Gunduz, Umut Erdem"]
[Black "Roman, Rodrigo"]
[WhiteFideId "6381383"]
[BlackFideId "3701220"]
[WhiteElo "2182"]
[BlackElo "2001"]
[Result "1-0"]
[Round "02"]
[TimeControl "180+1"]
[Date "2022.10.26"]
[WhiteClock "0:01:21"]
[BlackClock "0:00:19"]

1. e4 {[%clk 0:03:00]}  c5 {[%clk 0:03:00]} 2. Nf3 {[%clk 0:03:00]}  Nc6 {[%clk 0:03:00]} 3. d4 {[%clk 0:03:01]}  cxd4 {[%clk 0:03:01]} 4. Nxd4 {[%clk 0:03:01]}  e5 {[%clk 0:03:01]} 5. Nb5 {[%clk 0:03:01]}  d6 {[%clk 0:03:02]} 6. N1c3 {[%clk 0:02:57]}  a6 {[%clk 0:03:01]} 7. Na3 {[%clk 0:02:57]}  b5 {[%clk 0:03:02]} 8. Nd5 {[%clk 0:02:56]}  Nge7 {[%clk 0:03:01]} 9. c4 {[%clk 0:02:55]}  Nxd5 {[%clk 0:02:59]} 10. cxd5 {[%clk 0:02:54]}  Nd4 {[%clk 0:02:58]} 11. Bd3 {[%clk 0:02:54]}  g6 {[%clk 0:02:45]} 12. O-O {[%clk 0:02:53]}  Bg7 {[%clk 0:02:46]} 13. Be3 {[%clk 0:02:54]}  O-O {[%clk 0:02:46]} 14. Nc2 {[%clk 0:02:54]}  Bd7 {[%clk 0:02:44]} 15. Rc1 {[%clk 0:02:53]}  Nxc2 {[%clk 0:02:41]} 16. Rxc2 {[%clk 0:02:52]}  f5 {[%clk 0:02:42]} 17. f3 {[%clk 0:02:52]}  f4 {[%clk 0:02:24]} 18. Bf2 {[%clk 0:02:52]}  g5 {[%clk 0:02:24]} 19. Qe2 {[%clk 0:02:41]}  Qa5 {[%clk 0:02:23]} 20. a3 {[%clk 0:02:34]}  Rac8 {[%clk 0:02:23]} 21. Rfc1 {[%clk 0:02:32]}  Rxc2 {[%clk 0:02:22]} 22. Qxc2 {[%clk 0:02:30]}  Rc8 {[%clk 0:02:21]} 23. Qd1 {[%clk 0:02:30]}  Qd8 {[%clk 0:02:13]} 24. Be2 {[%clk 0:02:23]}  h5 {[%clk 0:01:57]} 25. h3 {[%clk 0:02:20]}  Kh7 {[%clk 0:01:56]} 26. Qd2 {[%clk 0:02:17]}  Rc7 {[%clk 0:01:50]} 27. Kh2 {[%clk 0:02:13]}  Qc8 {[%clk 0:01:48]} 28. Rxc7 {[%clk 0:02:10]}  Qxc7 {[%clk 0:01:49]} 29. Qb4 {[%clk 0:02:00]}  Bf6 {[%clk 0:01:45]} 30. b3 {[%clk 0:01:57]}  Be7 {[%clk 0:01:39]} 31. Be1 {[%clk 0:01:51]}  Qc2 {[%clk 0:01:34]} 32. Bf1 {[%clk 0:01:49]}  Qc1 {[%clk 0:01:30]} 33. Qc3 {[%clk 0:01:39]}  Qxc3 {[%clk 0:01:13]} 34. Bxc3 {[%clk 0:01:40]}  Bd8 {[%clk 0:01:13]} 35. Bb4 {[%clk 0:01:32]}  Bc7 {[%clk 0:01:13]} 36. Be2 {[%clk 0:01:32]}  a5 {[%clk 0:01:13]} 37. Bc3 {[%clk 0:01:32]}  Bb6 {[%clk 0:01:11]} 38. Be1 {[%clk 0:01:28]}  Kg6 {[%clk 0:01:11]} 39. h4 {[%clk 0:01:28]}  g4 {[%clk 0:01:10]} 40. g3 {[%clk 0:01:29]}  fxg3+ {[%clk 0:00:40]} 41. Kxg3 {[%clk 0:01:29]}  gxf3 {[%clk 0:00:37]} 42. Bxf3 {[%clk 0:01:30]}  Bd8 {[%clk 0:00:37]} 43. Bf2 {[%clk 0:01:27]}  Be8 {[%clk 0:00:33]} 44. Ba7 {[%clk 0:01:26]}  Bc7 {[%clk 0:00:33]} 45. Be3 {[%clk 0:01:21]}  Bd8 {[%clk 0:00:26]} 46. Bd2 {[%clk 0:01:21]}  Kf6 {[%clk 0:00:24]} 47. Bg5+ {[%clk 0:01:21]}  Kg7 {[%clk 0:00:18]} 48. Bxd8 {[%clk 0:01:22]}  Kf7 {[%clk 0:00:19]} 49. Bxa5 {[%clk 0:01:21]} 1-0


[Site "https://www.chess.com"]

[Event "Titled Tuesday Blitz October 25 Late 2022"]
[White "Guz, Ari"]
[Black "Sanal, Vahap"]
[WhiteFideId "2825759"]
[BlackFideId "6300545"]
[WhiteElo "2205"]
[BlackElo "2574"]
[Result "1-0"]
[Round "02"]
[TimeControl "180+1"]
[Date "2022.10.26"]
[WhiteClock "0:00:21"]
[BlackClock "0:01:10"]

1. Nf3 {[%clk 0:03:00]}  d6 {[%clk 0:03:00]} 2. d4 {[%clk 0:03:00]}  Nf6 {[%clk 0:02:59]} 3. Nc3 {[%clk 0:03:00]}  d5 {[%clk 0:02:57]} 4. Bf4 {[%clk 0:02:59]}  a6 {[%clk 0:02:54]} 5. e3 {[%clk 0:02:52]}  e6 {[%clk 0:02:55]} 6. a3 {[%clk 0:02:51]}  c5 {[%clk 0:02:54]} 7. dxc5 {[%clk 0:02:51]}  Bxc5 {[%clk 0:02:53]} 8. Bd3 {[%clk 0:02:51]}  Nc6 {[%clk 0:02:53]} 9. O-O {[%clk 0:02:50]}  O-O {[%clk 0:02:52]} 10. Ne5 {[%clk 0:02:50]}  Bd6 {[%clk 0:02:47]} 11. Nxc6 {[%clk 0:02:41]}  bxc6 {[%clk 0:02:47]} 12. Bxd6 {[%clk 0:02:41]}  Qxd6 {[%clk 0:02:47]} 13. Qe2 {[%clk 0:02:26]}  e5 {[%clk 0:02:40]} 14. e4 {[%clk 0:02:23]}  a5 {[%clk 0:02:33]} 15. Rad1 {[%clk 0:02:05]}  d4 {[%clk 0:02:29]} 16. Nb1 {[%clk 0:02:04]}  Rb8 {[%clk 0:02:29]} 17. b3 {[%clk 0:02:04]}  Re8 {[%clk 0:02:21]} 18. a4 {[%clk 0:02:03]}  g6 {[%clk 0:02:10]} 19. Nd2 {[%clk 0:01:47]}  Nh5 {[%clk 0:02:10]} 20. g3 {[%clk 0:01:47]}  Bh3 {[%clk 0:02:10]} 21. Rfe1 {[%clk 0:01:46]}  Be6 {[%clk 0:02:10]} 22. Bc4 {[%clk 0:01:43]}  Bd7 {[%clk 0:02:06]} 23. Qf3 {[%clk 0:01:41]}  Re7 {[%clk 0:02:04]} 24. Bd3 {[%clk 0:01:37]}  Rf8 {[%clk 0:02:02]} 25. Nc4 {[%clk 0:01:37]}  Qc7 {[%clk 0:02:02]} 26. Qe2 {[%clk 0:01:30]}  Ng7 {[%clk 0:02:00]} 27. Qd2 {[%clk 0:01:29]}  Bg4 {[%clk 0:01:58]} 28. Be2 {[%clk 0:01:28]}  h5 {[%clk 0:01:57]} 29. Bxg4 {[%clk 0:01:23]}  hxg4 {[%clk 0:01:57]} 30. Qxa5 {[%clk 0:01:23]}  Qb8 {[%clk 0:01:57]} 31. Qc5 {[%clk 0:01:21]}  Re6 {[%clk 0:01:49]} 32. a5 {[%clk 0:01:17]}  f5 {[%clk 0:01:49]} 33. a6 {[%clk 0:01:13]}  Rf7 {[%clk 0:01:43]} 34. exf5 {[%clk 0:01:05]}  Rxf5 {[%clk 0:01:38]} 35. a7 {[%clk 0:01:06]}  Qa8 {[%clk 0:01:38]} 36. Ra1 {[%clk 0:00:57]}  Re8 {[%clk 0:01:27]} 37. Nb6 {[%clk 0:00:58]}  Qb7 {[%clk 0:01:27]} 38. a8=Q {[%clk 0:00:58]}  Rxa8 {[%clk 0:01:28]} 39. Rxa8+ {[%clk 0:00:59]}  Kh7 {[%clk 0:01:28]} 40. Re8 {[%clk 0:00:26]}  Qf7 {[%clk 0:01:25]} 41. Re7 {[%clk 0:00:27]}  Qf8 {[%clk 0:01:15]} 42. Nd7 {[%clk 0:00:27]}  Qd8 {[%clk 0:01:15]} 43. R1xe5 {[%clk 0:00:26]}  Rf3 {[%clk 0:01:14]} 44. Qxd4 {[%clk 0:00:22]}  Qg8 {[%clk 0:01:10]} 45. Re3 {[%clk 0:00:21]}  Rf5 {[%clk 0:01:10]} 46. Nf6+ {[%clk 0:00:21]} 1-0


[Site "https://www.chess.com"]

[Event "Titled Tuesday Blitz October 25 Late 2022"]
[White "Hoffmann, Asa"]
[Black "Pakleza, Zbigniew"]
[WhiteFideId "2001470"]
[BlackFideId "1119290"]
[WhiteElo "2117"]
[BlackElo "2411"]
[Result "0-1"]
[Round "02"]
[TimeControl "180+1"]
[Date "2022.10.26"]
[WhiteClock "0:00:22"]
[BlackClock "0:00:35"]

1. d4 {[%clk 0:02:58]}  d6 {[%clk 0:02:47]} 2. e4 {[%clk 0:02:57]}  Nf6 {[%clk 0:02:47]} 3. f3 {[%clk 0:02:56]}  Nbd7 {[%clk 0:02:47]} 4. Be3 {[%clk 0:02:54]}  e5 {[%clk 0:02:47]} 5. Ne2 {[%clk 0:02:54]}  Be7 {[%clk 0:02:48]} 6. Nbc3 {[%clk 0:02:53]}  O-O {[%clk 0:02:46]} 7. g4 {[%clk 0:02:53]}  c6 {[%clk 0:02:45]} 8. Ng3 {[%clk 0:02:52]}  b5 {[%clk 0:02:43]} 9. g5 {[%clk 0:02:52]}  Ne8 {[%clk 0:02:43]} 10. h4 {[%clk 0:02:51]}  Nb6 {[%clk 0:02:37]} 11. a3 {[%clk 0:02:50]}  Nc7 {[%clk 0:02:22]} 12. Qd2 {[%clk 0:02:39]}  a5 {[%clk 0:02:02]} 13. dxe5 {[%clk 0:02:36]}  Nc4 {[%clk 0:01:34]} 14. Bxc4 {[%clk 0:02:34]}  bxc4 {[%clk 0:01:35]} 15. exd6 {[%clk 0:02:15]}  Bxd6 {[%clk 0:01:36]} 16. Nge2 {[%clk 0:02:13]}  Qe7 {[%clk 0:01:23]} 17. f4 {[%clk 0:01:47]}  Rd8 {[%clk 0:01:16]} 18. Rd1 {[%clk 0:01:42]}  Bg4 {[%clk 0:01:14]} 19. e5 {[%clk 0:01:23]}  Bxa3 {[%clk 0:01:05]} 20. Qc1 {[%clk 0:00:59]}  Bb4 {[%clk 0:00:57]} 21. Kf2 {[%clk 0:00:43]}  Bxc3 {[%clk 0:00:51]} 22. bxc3 {[%clk 0:00:42]}  Nd5 {[%clk 0:00:52]} 23. Rd4 {[%clk 0:00:35]}  Bxe2 {[%clk 0:00:46]} 24. Kxe2 {[%clk 0:00:32]}  Nxc3+ {[%clk 0:00:47]} 25. Kf3 {[%clk 0:00:32]}  c5 {[%clk 0:00:42]} 26. Rxd8+ {[%clk 0:00:28]}  Rxd8 {[%clk 0:00:43]} 27. Qa3 {[%clk 0:00:26]}  Qb7+ {[%clk 0:00:42]} 28. Kg4 {[%clk 0:00:24]}  Qg2+ {[%clk 0:00:37]} 29. Kh5 {[%clk 0:00:22]}  Qf3# {[%clk 0:00:35]} 0-1


[Site "https://www.chess.com"]

[Event "Titled Tuesday Blitz October 25 Late 2022"]
[White "Janaszak, Dawid"]
[Black "Yanayt, Eugene"]
[WhiteFideId "1119206"]
[BlackFideId "2020165"]
[WhiteElo "2226"]
[BlackElo "2046"]
[Result "1-0"]
[Round "02"]
[TimeControl "180+1"]
[Date "2022.10.26"]
[WhiteClock "0:00:24"]
[BlackClock "0:00:14"]

1. e4 {[%clk 0:03:00]}  c5 {[%clk 0:02:58]} 2. Nc3 {[%clk 0:03:00]}  e6 {[%clk 0:02:57]} 3. d4 {[%clk 0:02:58]}  cxd4 {[%clk 0:02:56]} 4. Qxd4 {[%clk 0:02:59]}  Nc6 {[%clk 0:02:56]} 5. Qd3 {[%clk 0:02:56]}  a6 {[%clk 0:02:52]} 6. Bf4 {[%clk 0:02:55]}  b5 {[%clk 0:02:38]} 7. O-O-O {[%clk 0:02:55]}  b4 {[%clk 0:02:38]} 8. Nd5 {[%clk 0:02:50]}  exd5 {[%clk 0:02:37]} 9. exd5 {[%clk 0:02:50]}  Nce7 {[%clk 0:02:35]} 10. d6 {[%clk 0:02:46]}  Qa5 {[%clk 0:02:31]} 11. dxe7 {[%clk 0:02:38]}  Bxe7 {[%clk 0:02:28]} 12. Qe4 {[%clk 0:02:28]}  d5 {[%clk 0:02:06]} 13. Rxd5 {[%clk 0:02:16]}  Qxa2 {[%clk 0:02:04]} 14. Re5 {[%clk 0:01:54]}  Ra7 {[%clk 0:01:45]} 15. Qc6+ {[%clk 0:01:46]}  Bd7 {[%clk 0:01:45]} 16. Qb6 {[%clk 0:01:42]}  Ra8 {[%clk 0:01:28]} 17. Nf3 {[%clk 0:01:05]}  Qa1+ {[%clk 0:01:20]} 18. Kd2 {[%clk 0:01:05]}  Qxb2 {[%clk 0:01:20]} 19. Bd3 {[%clk 0:00:51]}  Qc3+ {[%clk 0:01:12]} 20. Kd1 {[%clk 0:00:50]}  Qa1+ {[%clk 0:01:06]} 21. Bc1 {[%clk 0:00:49]}  Rd8 {[%clk 0:00:54]} 22. Rhe1 {[%clk 0:00:47]}  Bb5 {[%clk 0:00:45]} 23. Rxb5 {[%clk 0:00:34]}  axb5 {[%clk 0:00:35]} 24. Qxb5+ {[%clk 0:00:35]}  Kf8 {[%clk 0:00:35]} 25. Ne5 {[%clk 0:00:36]}  Nf6 {[%clk 0:00:34]} 26. Nc6 {[%clk 0:00:35]}  Re8 {[%clk 0:00:27]} 27. Nxe7 {[%clk 0:00:35]}  Rxe7 {[%clk 0:00:27]} 28. Qxb4 {[%clk 0:00:34]}  Qa7 {[%clk 0:00:22]} 29. Ba3 {[%clk 0:00:28]}  Nd5 {[%clk 0:00:20]} 30. Qd6 {[%clk 0:00:25]}  Qb7 {[%clk 0:00:14]} 31. Qd8# {[%clk 0:00:24]} 1-0


[Site "https://www.chess.com"]

[Event "Titled Tuesday Blitz October 25 Late 2022"]
[White "Jimenez Fernandez, Rebeca"]
[Black "Al Hosani, Omran"]
[WhiteFideId "32070934"]
[BlackFideId "9308733"]
[WhiteElo "1946"]
[BlackElo "2167"]
[Result "0-1"]
[Round "02"]
[TimeControl "180+1"]
[Date "2022.10.26"]
[WhiteClock "0:00:01"]
[BlackClock "0:00:37"]

1. e4 {[%clk 0:03:00]}  c5 {[%clk 0:02:52]} 2. Nc3 {[%clk 0:03:00]}  e6 {[%clk 0:02:44]} 3. Nge2 {[%clk 0:02:59]}  Nc6 {[%clk 0:02:40]} 4. g3 {[%clk 0:02:59]}  g6 {[%clk 0:02:39]} 5. Bg2 {[%clk 0:02:59]}  Bg7 {[%clk 0:02:39]} 6. d3 {[%clk 0:02:59]}  d6 {[%clk 0:02:39]} 7. Be3 {[%clk 0:03:00]}  Nge7 {[%clk 0:02:40]} 8. Qd2 {[%clk 0:03:00]}  O-O {[%clk 0:02:41]} 9. Bh6 {[%clk 0:03:00]}  Nd4 {[%clk 0:02:40]} 10. Bxg7 {[%clk 0:02:54]}  Kxg7 {[%clk 0:02:39]} 11. h4 {[%clk 0:02:54]}  h6 {[%clk 0:02:35]} 12. h5 {[%clk 0:02:44]}  g5 {[%clk 0:02:35]} 13. Nxd4 {[%clk 0:02:41]}  cxd4 {[%clk 0:02:35]} 14. Ne2 {[%clk 0:02:42]}  Nc6 {[%clk 0:02:31]} 15. O-O-O {[%clk 0:02:34]}  Qb6 {[%clk 0:02:22]} 16. g4 {[%clk 0:02:28]}  e5 {[%clk 0:02:11]} 17. f4 {[%clk 0:01:49]}  exf4 {[%clk 0:02:09]} 18. Nxf4 {[%clk 0:01:45]}  gxf4 {[%clk 0:02:09]} 19. Qxf4 {[%clk 0:01:46]}  Qc5 {[%clk 0:02:08]} 20. Kb1 {[%clk 0:01:37]}  Be6 {[%clk 0:02:03]} 21. g5 {[%clk 0:01:33]}  Qxg5 {[%clk 0:01:42]} 22. Qxd6 {[%clk 0:01:33]}  Qe5 {[%clk 0:01:39]} 23. Qa3 {[%clk 0:00:55]}  Qa5 {[%clk 0:01:33]} 24. Qxa5 {[%clk 0:00:52]}  Nxa5 {[%clk 0:01:27]} 25. e5 {[%clk 0:00:52]}  Nc6 {[%clk 0:01:25]} 26. Rhg1 {[%clk 0:00:42]}  Kh8 {[%clk 0:01:20]} 27. Bxc6 {[%clk 0:00:33]}  bxc6 {[%clk 0:01:16]} 28. Rdf1 {[%clk 0:00:33]}  Rg8 {[%clk 0:01:16]} 29. Kc1 {[%clk 0:00:22]}  c5 {[%clk 0:01:10]} 30. b3 {[%clk 0:00:15]}  a5 {[%clk 0:01:05]} 31. Rxg8+ {[%clk 0:00:14]}  Rxg8 {[%clk 0:01:05]} 32. Rf6 {[%clk 0:00:14]}  Kh7 {[%clk 0:01:01]} 33. Kb2 {[%clk 0:00:14]}  Rg5 {[%clk 0:01:00]} 34. Ka3 {[%clk 0:00:12]}  Rxe5 {[%clk 0:00:58]} 35. Ka4 {[%clk 0:00:12]}  Rxh5 {[%clk 0:00:57]} 36. Kxa5 {[%clk 0:00:11]}  c4+ {[%clk 0:00:58]} 37. Kb4 {[%clk 0:00:12]}  c3 {[%clk 0:00:58]} 38. Rf4 {[%clk 0:00:11]}  Rh2 {[%clk 0:00:57]} 39. Rxd4 {[%clk 0:00:10]}  Rxc2 {[%clk 0:00:56]} 40. Rd6 {[%clk 0:00:09]}  h5 {[%clk 0:00:56]} 41. a4 {[%clk 0:00:08]}  h4 {[%clk 0:00:45]} 42. Rd4 {[%clk 0:00:05]}  h3 {[%clk 0:00:45]} 43. a5 {[%clk 0:00:05]}  Rc1 {[%clk 0:00:40]} 44. a6 {[%clk 0:00:02]}  c2 {[%clk 0:00:38]} 45. a7 {[%clk 0:00:01]}  Ra1 {[%clk 0:00:38]} 46. Rh4+ {[%clk 0:00:01]}  Kg7 {[%clk 0:00:38]} 47. Rxh3 {[%clk 0:00:01]}  Bxh3 {[%clk 0:00:37]} 48. a8=Q {[%clk 0:00:01]}  Rxa8 {[%clk 0:00:37]} 0-1


[Site "https://www.chess.com"]

[Event "Titled Tuesday Blitz October 25 Late 2022"]
[White "Joubert, Dantelle"]
[Black "Baches Garcia, Guillermo"]
[WhiteFideId "14310813"]
[BlackFideId "2209764"]
[WhiteElo "1507"]
[BlackElo "2429"]
[Result "0-1"]
[Round "02"]
[TimeControl "180+1"]
[Date "2022.10.26"]
[WhiteClock "0:00:04"]
[BlackClock "0:00:20"]

1. d4 {[%clk 0:03:00]}  Nf6 {[%clk 0:02:59]} 2. c4 {[%clk 0:02:59]}  e6 {[%clk 0:03:00]} 3. Nf3 {[%clk 0:02:57]}  d5 {[%clk 0:03:00]} 4. Nc3 {[%clk 0:02:57]}  c5 {[%clk 0:02:59]} 5. cxd5 {[%clk 0:02:56]}  Nxd5 {[%clk 0:03:00]} 6. g3 {[%clk 0:02:51]}  Nxc3 {[%clk 0:02:55]} 7. bxc3 {[%clk 0:02:50]}  cxd4 {[%clk 0:02:55]} 8. cxd4 {[%clk 0:02:49]}  Bb4+ {[%clk 0:02:55]} 9. Bd2 {[%clk 0:02:49]}  Bxd2+ {[%clk 0:02:56]} 10. Qxd2 {[%clk 0:02:49]}  b6 {[%clk 0:02:54]} 11. Bg2 {[%clk 0:02:48]}  Bb7 {[%clk 0:02:54]} 12. O-O {[%clk 0:02:41]}  O-O {[%clk 0:02:54]} 13. Rfd1 {[%clk 0:02:40]}  Nd7 {[%clk 0:02:50]} 14. Qd3 {[%clk 0:02:32]}  Nf6 {[%clk 0:02:47]} 15. Ne5 {[%clk 0:02:14]}  Bxg2 {[%clk 0:02:42]} 16. Kxg2 {[%clk 0:02:14]}  Rc8 {[%clk 0:02:40]} 17. e4 {[%clk 0:02:07]}  Qe7 {[%clk 0:02:30]} 18. Rac1 {[%clk 0:01:53]}  Qb7 {[%clk 0:02:29]} 19. f3 {[%clk 0:01:48]}  h6 {[%clk 0:02:22]} 20. Rc4 {[%clk 0:01:39]}  Rxc4 {[%clk 0:02:14]} 21. Nxc4 {[%clk 0:01:38]}  Rd8 {[%clk 0:02:09]} 22. Ne5 {[%clk 0:01:26]}  Nd7 {[%clk 0:02:07]} 23. Nxd7 {[%clk 0:01:15]}  Qxd7 {[%clk 0:02:06]} 24. d5 {[%clk 0:01:14]}  exd5 {[%clk 0:01:57]} 25. exd5 {[%clk 0:01:13]}  Qd6 {[%clk 0:01:51]} 26. Rd2 {[%clk 0:01:12]}  h5 {[%clk 0:01:48]} 27. Qf5 {[%clk 0:01:09]}  g6 {[%clk 0:01:43]} 28. Qd3 {[%clk 0:01:08]}  h4 {[%clk 0:01:41]} 29. gxh4 {[%clk 0:00:48]}  Qf4 {[%clk 0:01:29]} 30. Qd4 {[%clk 0:00:46]}  Qxd4 {[%clk 0:01:21]} 31. Rxd4 {[%clk 0:00:45]}  Rd6 {[%clk 0:01:20]} 32. Kg3 {[%clk 0:00:41]}  Kg7 {[%clk 0:01:20]} 33. Kf4 {[%clk 0:00:40]}  Kf6 {[%clk 0:01:19]} 34. Ke4 {[%clk 0:00:39]}  Ke7 {[%clk 0:01:18]} 35. Rc4 {[%clk 0:00:38]}  Kd7 {[%clk 0:01:17]} 36. Ke5 {[%clk 0:00:35]}  b5 {[%clk 0:01:12]} 37. Rf4 {[%clk 0:00:33]}  f5 {[%clk 0:00:40]} 38. h5 {[%clk 0:00:31]}  gxh5 {[%clk 0:00:40]} 39. Rxf5 {[%clk 0:00:31]}  Ra6 {[%clk 0:00:36]} 40. Rxh5 {[%clk 0:00:21]}  Rxa2 {[%clk 0:00:36]} 41. Rh7+ {[%clk 0:00:20]}  Kd8 {[%clk 0:00:35]} 42. Kd6 {[%clk 0:00:20]}  Ke8 {[%clk 0:00:33]} 43. f4 {[%clk 0:00:20]}  b4 {[%clk 0:00:32]} 44. f5 {[%clk 0:00:11]}  a5 {[%clk 0:00:26]} 45. Ke6 {[%clk 0:00:09]}  Re2+ {[%clk 0:00:24]} 46. Kd6 {[%clk 0:00:07]}  b3 {[%clk 0:00:22]} 47. Rb7 {[%clk 0:00:04]}  a4 {[%clk 0:00:20]} 48. f6 {[%clk 0:00:04]}  b2 {[%clk 0:00:20]} 0-1


[Site "https://www.chess.com"]